[Event "Live Chess"]
[Site "Chess.com"]
[Date "2024.06.02"]
[Round "-"]
[White "booktrunk"]
[Black "KeithArkell"]
[Result "0-1"]
[WhiteElo "1509"]
[BlackElo "2441"]
[TimeControl "300"]
[EndTime "20:31:24 PDT"]
[Termination "KeithArkell won by resignation"]

1. g3 {[%clk 0:04:56.3]} 1... d5 {[%clk 0:04:58.7]} 2. Bg2 {[%clk 0:04:54.1]}
2... Nf6 {[%clk 0:04:58.1]} 3. d4 {[%clk 0:04:47]} 3... Bf5 {[%clk 0:04:41.6]}
4. Nc3 {[%clk 0:04:46.9]} 4... c6 {[%clk 0:04:40.2]} 5. Nf3 {[%clk 0:04:27.5]}
5... g6 {[%clk 0:04:15.8]} 6. Nh4 {[%clk 0:04:23]} 6... Be6 {[%clk 0:04:13.4]}
7. Nf3 {[%clk 0:04:12.4]} 7... Bg7 {[%clk 0:04:03.6]} 8. Ng5 {[%clk 0:04:01.4]}
8... Bf5 {[%clk 0:04:01.9]} 9. Nf3 {[%clk 0:03:58.7]} 9... O-O {[%clk
0:04:00.4]} 10. Nh4 {[%clk 0:03:57.3]} 10... Be4 {[%clk 0:03:36.6]} 11. Bxe4
{[%clk 0:03:53.9]} 11... dxe4 {[%clk 0:03:34.7]} 12. e3 {[%clk 0:03:44.3]} 12...
Nbd7 {[%clk 0:03:33.2]} 13. Ng2 {[%clk 0:03:42.5]} 13... e5 {[%clk 0:03:32.4]}
14. dxe5 {[%clk 0:03:40.5]} 14... Nxe5 {[%clk 0:03:31.4]} 15. Qxd8 {[%clk
0:03:38.4]} 15... Nf3+ {[%clk 0:03:30.4]} 16. Ke2 {[%clk 0:03:33.7]} 16... Raxd8
{[%clk 0:03:29.3]} 17. Ne1 {[%clk 0:03:27.4]} 17... Nxe1 {[%clk 0:03:27.9]} 18.
Rxe1 {[%clk 0:03:24.4]} 18... Rfe8 {[%clk 0:03:27.8]} 19. Rd1 {[%clk 0:03:22.7]}
19... Ng4 {[%clk 0:03:26.8]} 20. Rxd8 {[%clk 0:03:20.1]} 20... Rxd8 {[%clk
0:03:26.1]} 21. h3 {[%clk 0:03:13.1]} 21... Bxc3 {[%clk 0:03:22.8]} 22. bxc3
{[%clk 0:03:11.4]} 22... Ne5 {[%clk 0:03:21.7]} 23. Bb2 {[%clk 0:03:09]} 23...
Nc4 {[%clk 0:03:20.5]} 24. Bc1 {[%clk 0:03:05.1]} 24... f5 {[%clk 0:03:19.6]}
25. Rb1 {[%clk 0:03:02.6]} 25... b5 {[%clk 0:03:18.8]} 26. Rb4 {[%clk
0:02:58.1]} 26... a6 {[%clk 0:03:16.6]} 27. a4 {[%clk 0:02:56.5]} 27... Kf7
{[%clk 0:03:15.2]} 28. axb5 {[%clk 0:02:55.3]} 28... cxb5 {[%clk 0:03:14.6]} 29.
Rb1 {[%clk 0:02:46.7]} 29... Ke6 {[%clk 0:03:13.4]} 30. Ra1 {[%clk 0:02:45.2]}
30... a5 {[%clk 0:03:12.6]} 31. Ra2 {[%clk 0:02:42.1]} 31... Kd5 {[%clk
0:03:11.3]} 32. Ba3 {[%clk 0:02:36.2]} 32... Nxa3 {[%clk 0:03:07.3]} 33. Rxa3
{[%clk 0:02:34.8]} 33... a4 {[%clk 0:03:06.7]} 34. c4+ {[%clk 0:02:31.6]} 34...
Kxc4 {[%clk 0:03:05.6]} 35. f3 {[%clk 0:02:18.1]} 35... Kb4 {[%clk 0:03:01.2]}
36. Ra2 {[%clk 0:02:16]} 36... Kc3 {[%clk 0:02:59.2]} 37. fxe4 {[%clk
0:02:13.8]} 37... fxe4 {[%clk 0:02:58]} 38. h4 {[%clk 0:02:09.5]} 38... Rd2+
{[%clk 0:02:49.2]} 39. Kf1 {[%clk 0:02:05.3]} 39... Rxc2 {[%clk 0:02:48.4]} 40.
Ra3+ {[%clk 0:02:04.4]} 40... Kb4 {[%clk 0:02:47.2]} 41. Ra1 {[%clk 0:02:03.2]}
41... a3 {[%clk 0:02:46.5]} 42. Rb1+ {[%clk 0:02:01.9]} 42... Rb2 {[%clk
0:02:46]} 43. Rd1 {[%clk 0:01:58.2]} 43... a2 {[%clk 0:02:45]} 44. Rd4+ {[%clk
0:01:56.9]} 44... Ka5 {[%clk 0:02:44.5]} 0-1

[Event "Live Chess"]
[Site "Chess.com"]
[Date "2024.06.02"]
[Round "-"]
[White "Mikhail_Golubev"]
[Black "Mangoalo"]
[Result "1-0"]
[WhiteElo "2529"]
[BlackElo "1067"]
[TimeControl "300"]
[EndTime "20:31:25 PDT"]
[Termination "Mikhail_Golubev won by checkmate"]

1. e4 {[%clk 0:04:56.5]} 1... c6 {[%clk 0:04:57.1]} 2. Nf3 {[%clk 0:04:53.8]}
2... d5 {[%clk 0:04:57]} 3. Nc3 {[%clk 0:04:50.1]} 3... Bg4 {[%clk 0:04:53.9]}
4. h3 {[%clk 0:04:48.5]} 4... Bh5 {[%clk 0:04:52.4]} 5. g4 {[%clk 0:04:46.8]}
5... Bg6 {[%clk 0:04:51.3]} 6. exd5 {[%clk 0:04:45.7]} 6... cxd5 {[%clk
0:04:49.2]} 7. Ne5 {[%clk 0:04:41.5]} 7... Nc6 {[%clk 0:04:44.2]} 8. d4 {[%clk
0:04:40.7]} 8... Nxe5 {[%clk 0:04:43.1]} 9. dxe5 {[%clk 0:04:39.9]} 9... e6
{[%clk 0:04:42.2]} 10. Bb5+ {[%clk 0:04:32]} 10... Ke7 {[%clk 0:04:39.2]} 11. h4
{[%clk 0:03:54.4]} 11... h6 {[%clk 0:04:36.8]} 12. h5 {[%clk 0:03:50.6]} 12...
Bh7 {[%clk 0:04:35.8]} 13. Be3 {[%clk 0:03:33]} 13... a6 {[%clk 0:04:34.3]} 14.
Bc5+ {[%clk 0:03:31.2]} 14... Qd6 {[%clk 0:04:28.3]} 15. exd6+ {[%clk 0:03:29]}
15... Kf6 {[%clk 0:04:27]} 16. Qf3+ {[%clk 0:03:10.2]} 16... Kg5 {[%clk
0:04:22]} 17. Be3# {[%clk 0:03:07.8]} 1-0

[Event "Live Chess"]
[Site "Chess.com"]
[Date "2024.06.02"]
[Round "-"]
[White "MagnersCarlsberg2870"]
[Black "NeilDruggan73"]
[Result "1-0"]
[WhiteElo "1842"]
[BlackElo "1779"]
[TimeControl "300"]
[EndTime "20:32:10 PDT"]
[Termination "MagnersCarlsberg2870 won by resignation"]

1. Nf3 {[%clk 0:04:56.3]} 1... d5 {[%clk 0:04:56.8]} 2. e4 {[%clk 0:04:55]} 2...
dxe4 {[%clk 0:04:54.7]} 3. Ng5 {[%clk 0:04:53.2]} 3... Nf6 {[%clk 0:04:52.7]} 4.
d3 {[%clk 0:04:51.6]} 4... h6 {[%clk 0:04:45.9]} 5. Nxe4 {[%clk 0:04:46.9]} 5...
Nbd7 {[%clk 0:04:42.8]} 6. Nbc3 {[%clk 0:04:43.9]} 6... b6 {[%clk 0:04:41.1]} 7.
Be2 {[%clk 0:04:41.9]} 7... Bb7 {[%clk 0:04:40.5]} 8. Bf3 {[%clk 0:04:41]} 8...
Nxe4 {[%clk 0:04:36.9]} 9. Nxe4 {[%clk 0:04:36.4]} 9... Rb8 {[%clk 0:04:33.3]}
10. Qe2 {[%clk 0:04:33]} 10... e6 {[%clk 0:04:29.7]} 11. Bf4 {[%clk 0:04:28.8]}
11... g5 {[%clk 0:04:26.2]} 12. Bg3 {[%clk 0:04:26.2]} 12... Bg7 {[%clk
0:04:24.8]} 13. c3 {[%clk 0:04:24.2]} 13... Ne5 {[%clk 0:04:21.9]} 14. Bxe5
{[%clk 0:04:21.1]} 14... Bxe5 {[%clk 0:04:19.5]} 15. d4 {[%clk 0:04:20.1]} 15...
Bf4 {[%clk 0:04:16.3]} 16. g3 {[%clk 0:04:16.7]} 16... Bd6 {[%clk 0:04:13.3]}
17. h4 {[%clk 0:04:10.7]} 17... f5 {[%clk 0:04:08.7]} 18. Bh5+ {[%clk
0:04:09.3]} 18... Kd7 {[%clk 0:04:00.6]} 19. Nd2 {[%clk 0:03:55.4]} 19... Bxh1
{[%clk 0:03:56.7]} 20. f3 {[%clk 0:03:52.3]} 20... Bxg3+ {[%clk 0:03:50.4]} 21.
Kd1 {[%clk 0:03:51.1]} 21... Bf4 {[%clk 0:03:23.5]} 22. Kc2 {[%clk 0:03:48.8]}
22... gxh4 {[%clk 0:03:15.8]} 23. Rxh1 {[%clk 0:03:46.9]} 23... Qg5 {[%clk
0:03:15.3]} 24. Bf7 {[%clk 0:03:42.8]} 24... Qe7 {[%clk 0:03:03.6]} 25. Bh5
{[%clk 0:03:30.4]} 25... Rhg8 {[%clk 0:03:02.6]} 26. Nc4 {[%clk 0:03:25.2]}
26... Rg5 {[%clk 0:03:00.9]} 27. Rd1 {[%clk 0:03:09.3]} 27... Rxh5 {[%clk
0:02:55.9]} 28. d5 {[%clk 0:03:07.6]} 28... exd5 {[%clk 0:02:54.7]} 29. Rxd5+
{[%clk 0:03:06]} 29... Bd6 {[%clk 0:02:51.1]} 30. Ne5+ {[%clk 0:02:59.1]} 30...
Kc8 {[%clk 0:02:44.3]} 31. Qa6+ {[%clk 0:02:48.1]} 31... Rb7 {[%clk 0:02:40.9]}
32. Nc6 {[%clk 0:02:45.2]} 32... Qe3 {[%clk 0:02:20.5]} 33. Nxa7+ {[%clk
0:02:40.3]} 33... Kd7 {[%clk 0:02:14.4]} 34. Qxb7 {[%clk 0:02:38.4]} 34... Qf2+
{[%clk 0:01:41.1]} 35. Kb3 {[%clk 0:02:36.6]} 35... Qxf3 {[%clk 0:01:40]} 36.
Rxd6+ {[%clk 0:02:32.6]} 36... Kxd6 {[%clk 0:01:38.6]} 37. Qxf3 {[%clk
0:02:31.2]} 37... Rg5 {[%clk 0:01:38.3]} 38. Qc6+ {[%clk 0:02:24.9]} 38... Ke5
{[%clk 0:01:37.3]} 39. Qxc7+ {[%clk 0:02:22.6]} 39... Ke4 {[%clk 0:01:36]} 40.
Nb5 {[%clk 0:02:13.3]} 40... Kf3 {[%clk 0:01:35.3]} 41. Nd4+ {[%clk 0:02:12.1]}
41... Kg2 {[%clk 0:01:34.2]} 42. Qf4 {[%clk 0:02:08.5]} 42... Rg3 {[%clk
0:01:21.9]} 43. Nxf5 {[%clk 0:02:02.8]} 43... Rf3 {[%clk 0:01:20.6]} 44. Nxh4+
{[%clk 0:01:59.3]} 1-0

[Event "Live Chess"]
[Site "Chess.com"]
[Date "2024.06.02"]
[Round "-"]
[White "juniortay"]
[Black "Dhaydon19"]
[Result "1-0"]
[WhiteElo "2432"]
[BlackElo "2673"]
[TimeControl "300"]
[EndTime "20:33:52 PDT"]
[Termination "juniortay won by checkmate"]

1. e4 {[%clk 0:04:58.2]} 1... c6 {[%clk 0:04:58.6]} 2. Nf3 {[%clk 0:04:57.2]}
2... d5 {[%clk 0:04:58.2]} 3. exd5 {[%clk 0:04:57.1]} 3... cxd5 {[%clk
0:04:57.3]} 4. Ne5 {[%clk 0:04:56.8]} 4... Nc6 {[%clk 0:04:56.6]} 5. d4 {[%clk
0:04:56.2]} 5... Nf6 {[%clk 0:04:55.1]} 6. Bb5 {[%clk 0:04:55.2]} 6... Bd7
{[%clk 0:04:53.8]} 7. Nxd7 {[%clk 0:04:54.6]} 7... Qxd7 {[%clk 0:04:52.6]} 8. c3
{[%clk 0:04:54.4]} 8... e6 {[%clk 0:04:52.2]} 9. O-O {[%clk 0:04:53.6]} 9... Bd6
{[%clk 0:04:51.7]} 10. Nd2 {[%clk 0:04:52.8]} 10... a6 {[%clk 0:04:48.4]} 11.
Bd3 {[%clk 0:04:51.8]} 11... O-O {[%clk 0:04:47.4]} 12. f4 {[%clk 0:04:46.6]}
12... Qc7 {[%clk 0:04:45]} 13. g3 {[%clk 0:04:45.2]} 13... Rfe8 {[%clk
0:04:42.4]} 14. Qe2 {[%clk 0:04:43.6]} 14... Re7 {[%clk 0:04:40.4]} 15. Nf3
{[%clk 0:04:41.7]} 15... Nd7 {[%clk 0:04:39.1]} 16. Ne5 {[%clk 0:04:26.5]} 16...
Nf8 {[%clk 0:04:34]} 17. Bd2 {[%clk 0:04:20.3]} 17... f6 {[%clk 0:04:30.1]} 18.
Nxc6 {[%clk 0:04:16]} 18... bxc6 {[%clk 0:04:29.2]} 19. Qg4 {[%clk 0:04:09.2]}
19... a5 {[%clk 0:04:24.8]} 20. Rae1 {[%clk 0:04:03.5]} 20... Rae8 {[%clk
0:04:13.9]} 21. Re2 {[%clk 0:04:00.5]} 21... c5 {[%clk 0:04:10.9]} 22. Bb5
{[%clk 0:03:51.6]} 22... Rb8 {[%clk 0:04:05.5]} 23. a4 {[%clk 0:03:50.7]} 23...
c4 {[%clk 0:04:00.4]} 24. Rfe1 {[%clk 0:03:47.7]} 24... f5 {[%clk 0:03:59.5]}
25. Qf3 {[%clk 0:03:40.1]} 25... g6 {[%clk 0:03:54.4]} 26. g4 {[%clk 0:03:37.7]}
26... Rb7 {[%clk 0:03:41.4]} 27. gxf5 {[%clk 0:03:34.8]} 27... gxf5 {[%clk
0:03:40.3]} 28. Kh1 {[%clk 0:03:34.4]} 28... Qc8 {[%clk 0:03:33.8]} 29. Ba6
{[%clk 0:03:28.8]} 29... Qc6 {[%clk 0:03:24.1]} 30. Bxb7 {[%clk 0:03:26.9]}
30... Qxb7 {[%clk 0:03:23.1]} 31. Rg2+ {[%clk 0:03:23.2]} 31... Rg7 {[%clk
0:03:19]} 32. Reg1 {[%clk 0:03:15.9]} 32... Rxg2 {[%clk 0:03:17.2]} 33. Rxg2+
{[%clk 0:03:15.8]} 33... Kh8 {[%clk 0:03:15.1]} 34. Qh5 {[%clk 0:03:09]} 34...
Qe7 {[%clk 0:03:13.6]} 35. Qh6 {[%clk 0:03:05.1]} 35... Qf7 {[%clk 0:03:09.7]}
36. Be1 {[%clk 0:03:01.2]} 36... Ng6 {[%clk 0:03:02.4]} 37. Bh4 {[%clk
0:02:55.9]} 37... Bxf4 {[%clk 0:02:51.2]} 38. Qh5 {[%clk 0:02:36.5]} 38... Bd6
{[%clk 0:02:47.6]} 39. Bd8 {[%clk 0:02:30]} 39... Kg7 {[%clk 0:02:38.6]} 40.
Bxa5 {[%clk 0:02:26.8]} 40... Qa7 {[%clk 0:02:37.3]} 41. Bd8 {[%clk 0:02:12.4]}
41... Qxa4 {[%clk 0:02:33.1]} 42. Qg5 {[%clk 0:02:06.9]} 42... Qd1+ {[%clk
0:02:29.3]} 43. Rg1 {[%clk 0:02:03.8]} 43... Qf3+ {[%clk 0:02:28.4]} 44. Rg2
{[%clk 0:02:00.1]} 44... Qd1+ {[%clk 0:02:16.3]} 45. Rg1 {[%clk 0:01:59.2]}
45... Qf3+ {[%clk 0:02:15.2]} 46. Rg2 {[%clk 0:01:58.7]} 46... Qe4 {[%clk
0:01:58.3]} 47. Bf6+ {[%clk 0:01:17.7]} 47... Kf7 {[%clk 0:01:55]} 48. Bd8
{[%clk 0:01:09.5]} 48... Nf4 {[%clk 0:01:47.9]} 49. Qg8# {[%clk 0:01:03.7]} 1-0

[Event "Live Chess"]
[Site "Chess.com"]
[Date "2024.06.02"]
[Round "-"]
[White "ShanthamGrarks"]
[Black "IgorSchukin"]
[Result "1-0"]
[WhiteElo "1929"]
[BlackElo "1757"]
[TimeControl "300"]
[EndTime "20:34:16 PDT"]
[Termination "ShanthamGrarks won by resignation"]

1. d4 {[%clk 0:04:53.8]} 1... d5 {[%clk 0:04:58.4]} 2. Nc3 {[%clk 0:04:52.7]}
2... Nf6 {[%clk 0:04:56.9]} 3. e4 {[%clk 0:04:52]} 3... dxe4 {[%clk 0:04:55.9]}
4. f3 {[%clk 0:04:51.5]} 4... e5 {[%clk 0:04:52]} 5. d5 {[%clk 0:04:49.5]} 5...
c6 {[%clk 0:04:49.8]} 6. fxe4 {[%clk 0:04:48]} 6... cxd5 {[%clk 0:04:48.8]} 7.
exd5 {[%clk 0:04:45.4]} 7... Bb4 {[%clk 0:04:45.7]} 8. Bc4 {[%clk 0:04:39.3]}
8... O-O {[%clk 0:04:42.3]} 9. Ne2 {[%clk 0:04:37.9]} 9... Bxc3+ {[%clk
0:04:32.9]} 10. Nxc3 {[%clk 0:04:33]} 10... Ng4 {[%clk 0:04:11.8]} 11. g3 {[%clk
0:04:13.7]} 11... Qb6 {[%clk 0:04:05.4]} 12. Qe2 {[%clk 0:04:12.1]} 12... f5
{[%clk 0:03:53.9]} 13. h3 {[%clk 0:04:08.9]} 13... Nf6 {[%clk 0:03:46.6]} 14.
Bg5 {[%clk 0:03:58.7]} 14... e4 {[%clk 0:03:38.9]} 15. O-O-O {[%clk 0:03:42.7]}
15... Kh8 {[%clk 0:03:36.9]} 16. d6 {[%clk 0:03:34.2]} 16... Bd7 {[%clk
0:03:33]} 17. Bxf6 {[%clk 0:03:33.2]} 17... Rxf6 {[%clk 0:03:31.4]} 18. Nd5
{[%clk 0:03:32.1]} 18... Qa5 {[%clk 0:03:24.6]} 19. Nxf6 {[%clk 0:03:30.7]}
19... gxf6 {[%clk 0:03:22.7]} 20. Qh5 {[%clk 0:03:26.5]} 20... Nc6 {[%clk
0:03:13.1]} 21. Qf7 {[%clk 0:03:21.6]} 21... Qe5 {[%clk 0:02:55.6]} 22. Qxd7
{[%clk 0:03:19.4]} 22... Rd8 {[%clk 0:02:49.5]} 23. Qxb7 {[%clk 0:03:12.4]}
23... Na5 {[%clk 0:02:33.7]} 24. Qc7 {[%clk 0:03:05.6]} 24... Rf8 {[%clk
0:02:25.7]} 25. Bb3 {[%clk 0:02:57.1]} 25... Nxb3+ {[%clk 0:02:23.7]} 26. axb3
{[%clk 0:02:54]} 26... Qxg3 {[%clk 0:02:19.5]} 27. Rhg1 {[%clk 0:02:50.3]} 27...
Qe3+ {[%clk 0:02:15.5]} 28. Kb1 {[%clk 0:02:48.8]} 28... Rg8 {[%clk 0:02:12.1]}
29. Rxg8+ {[%clk 0:02:45.2]} 29... Kxg8 {[%clk 0:02:10.7]} 30. d7 {[%clk
0:02:44.3]} 1-0

[Event "Live Chess"]
[Site "Chess.com"]
[Date "2024.06.02"]
[Round "-"]
[White "booktrunk"]
[Black "Mangoalo"]
[Result "1-0"]
[WhiteElo "1510"]
[BlackElo "1066"]
[TimeControl "300"]
[EndTime "20:34:48 PDT"]
[Termination "booktrunk won by resignation"]

1. d4 {[%clk 0:04:51.8]} 1... Nf6 {[%clk 0:04:56.4]} 2. Nc3 {[%clk 0:04:51.7]}
2... e6 {[%clk 0:04:56]} 3. Bf4 {[%clk 0:04:50]} 3... Bb4 {[%clk 0:04:55.6]} 4.
Bd2 {[%clk 0:04:44.7]} 4... O-O {[%clk 0:04:53.3]} 5. a3 {[%clk 0:04:43.3]} 5...
Bxc3 {[%clk 0:04:51.7]} 6. Bxc3 {[%clk 0:04:41.6]} 6... c6 {[%clk 0:04:51.6]} 7.
Nf3 {[%clk 0:04:39.5]} 7... d5 {[%clk 0:04:51.5]} 8. e3 {[%clk 0:04:37.7]} 8...
Re8 {[%clk 0:04:49.1]} 9. b3 {[%clk 0:04:33.3]} 9... Bd7 {[%clk 0:04:48.2]} 10.
Bb2 {[%clk 0:04:32.4]} 10... Qa5+ {[%clk 0:04:46.4]} 11. Qd2 {[%clk 0:04:28.3]}
11... Qxd2+ {[%clk 0:04:45.1]} 12. Nxd2 {[%clk 0:04:26.6]} 12... Na6 {[%clk
0:04:44.8]} 13. Bxa6 {[%clk 0:04:24.3]} 13... bxa6 {[%clk 0:04:43.5]} 14. O-O
{[%clk 0:04:23.8]} 14... a5 {[%clk 0:04:42.7]} 15. c4 {[%clk 0:04:20.1]} 15...
dxc4 {[%clk 0:04:40.8]} 16. Nxc4 {[%clk 0:04:18.4]} 16... Nd5 {[%clk 0:04:39.7]}
17. Nxa5 {[%clk 0:04:16.3]} 17... f5 {[%clk 0:04:34.9]} 18. b4 {[%clk
0:04:15.1]} 18... Rab8 {[%clk 0:04:32.6]} 19. Bc1 {[%clk 0:04:09.7]} 19... g5
{[%clk 0:04:22.4]} 20. Bd2 {[%clk 0:04:08.1]} 20... f4 {[%clk 0:04:20.4]} 21.
Rab1 {[%clk 0:04:01.1]} 21... fxe3 {[%clk 0:04:16.4]} 22. fxe3 {[%clk
0:03:59.5]} 22... Rf8 {[%clk 0:04:13.8]} 23. Rxf8+ {[%clk 0:03:56.4]} 23... Kxf8
{[%clk 0:04:13.7]} 24. Rf1+ {[%clk 0:03:53.6]} 24... Kg7 {[%clk 0:04:13]} 25. h3
{[%clk 0:03:51.1]} 25... Rf8 {[%clk 0:04:10.5]} 26. Rxf8 {[%clk 0:03:49]} 26...
Kxf8 {[%clk 0:04:10.4]} 27. Nc4 {[%clk 0:03:45.7]} 27... a6 {[%clk 0:04:07.1]}
28. Kf2 {[%clk 0:03:44.1]} 28... h5 {[%clk 0:04:03.5]} 29. g3 {[%clk 0:03:40.6]}
29... g4 {[%clk 0:04:02]} 30. hxg4 {[%clk 0:03:38.2]} 30... hxg4 {[%clk
0:04:01.9]} 31. Ne5 {[%clk 0:03:33.7]} 31... Bc8 {[%clk 0:03:58.8]} 32. Nxc6
{[%clk 0:03:31.4]} 32... Ne7 {[%clk 0:03:55.5]} 33. Ne5 {[%clk 0:03:20.7]} 1-0

[Event "Live Chess"]
[Site "Chess.com"]
[Date "2024.06.02"]
[Round "-"]
[White "grillage"]
[Black "MagnersCarlsberg2870"]
[Result "1-0"]
[WhiteElo "1868"]
[BlackElo "1834"]
[TimeControl "300"]
[EndTime "20:36:18 PDT"]
[Termination "grillage won by resignation"]

1. d4 {[%clk 0:04:56.5]} 1... Nf6 {[%clk 0:04:58.2]} 2. Nf3 {[%clk 0:04:55.5]}
2... b6 {[%clk 0:04:55.4]} 3. g3 {[%clk 0:04:53.3]} 3... Bb7 {[%clk 0:04:53.7]}
4. Bg2 {[%clk 0:04:52.7]} 4... d6 {[%clk 0:04:52.7]} 5. O-O {[%clk 0:04:51.7]}
5... h5 {[%clk 0:04:50.5]} 6. b3 {[%clk 0:04:43]} 6... Nbd7 {[%clk 0:04:49.2]}
7. Bb2 {[%clk 0:04:39.1]} 7... Rb8 {[%clk 0:04:47.7]} 8. Nbd2 {[%clk 0:04:31.1]}
8... h4 {[%clk 0:04:46.4]} 9. Nxh4 {[%clk 0:04:28.1]} 9... Rxh4 {[%clk
0:04:45.2]} 10. gxh4 {[%clk 0:04:23.5]} 10... e5 {[%clk 0:04:44.3]} 11. Bxb7
{[%clk 0:04:18.1]} 11... Rxb7 {[%clk 0:04:43.2]} 12. dxe5 {[%clk 0:04:13.8]}
12... Ng4 {[%clk 0:04:41.4]} 13. Nf3 {[%clk 0:04:04.4]} 13... Be7 {[%clk
0:04:26.8]} 14. Qd5 {[%clk 0:03:51.9]} 14... Rb8 {[%clk 0:04:20.4]} 15. e6
{[%clk 0:03:46.7]} 15... fxe6 {[%clk 0:04:09.2]} 16. Qxe6 {[%clk 0:03:45]} 16...
Ndf6 {[%clk 0:04:07.5]} 17. Ng5 {[%clk 0:03:35.4]} 17... Nh6 {[%clk 0:03:58.9]}
18. Bxf6 {[%clk 0:03:27.2]} 18... gxf6 {[%clk 0:03:52.8]} 19. Ne4 {[%clk
0:03:18.4]} 19... Qd7 {[%clk 0:03:47.6]} 20. Nxf6+ {[%clk 0:03:15.5]} 1-0

[Event "Live Chess"]
[Site "Chess.com"]
[Date "2024.06.02"]
[Round "-"]
[White "Mikhail_Golubev"]
[Black "KeithArkell"]
[Result "1-0"]
[WhiteElo "2535"]
[BlackElo "2435"]
[TimeControl "300"]
[EndTime "20:37:26 PDT"]
[Termination "Mikhail_Golubev won by resignation"]

1. e4 {[%clk 0:04:58.2]} 1... c6 {[%clk 0:04:59]} 2. d4 {[%clk 0:04:56.2]} 2...
d5 {[%clk 0:04:58.3]} 3. Nc3 {[%clk 0:04:55.9]} 3... dxe4 {[%clk 0:04:57.4]} 4.
Nxe4 {[%clk 0:04:55.7]} 4... Nd7 {[%clk 0:04:56.9]} 5. Bd3 {[%clk 0:04:52.7]}
5... Ngf6 {[%clk 0:04:55.9]} 6. Ng5 {[%clk 0:04:51.6]} 6... Nb6 {[%clk
0:04:55.3]} 7. N1f3 {[%clk 0:04:40.8]} 7... Bg4 {[%clk 0:04:54.3]} 8. h3 {[%clk
0:04:36.8]} 8... Bxf3 {[%clk 0:04:53.1]} 9. Nxf3 {[%clk 0:04:36.4]} 9... g6
{[%clk 0:04:52.6]} 10. O-O {[%clk 0:04:33.5]} 10... Bg7 {[%clk 0:04:52]} 11. Re1
{[%clk 0:04:32.5]} 11... O-O {[%clk 0:04:49.2]} 12. c4 {[%clk 0:04:26.2]} 12...
Qc7 {[%clk 0:04:47.2]} 13. Bd2 {[%clk 0:04:09.6]} 13... e6 {[%clk 0:04:42.9]}
14. Qe2 {[%clk 0:03:58.9]} 14... a5 {[%clk 0:04:40.4]} 15. Rad1 {[%clk
0:03:43.3]} 15... c5 {[%clk 0:04:39.6]} 16. dxc5 {[%clk 0:03:32.7]} 16... Qxc5
{[%clk 0:04:39.5]} 17. Be3 {[%clk 0:03:18.2]} 17... Qc7 {[%clk 0:04:37.9]} 18.
Nd4 {[%clk 0:03:15.5]} 18... Nbd7 {[%clk 0:04:34.8]} 19. Nb5 {[%clk 0:03:12.4]}
19... Qc6 {[%clk 0:04:33.7]} 20. Bc2 {[%clk 0:03:01.4]} 20... Rfc8 {[%clk
0:04:17.3]} 21. Nd6 {[%clk 0:02:34.1]} 21... Rd8 {[%clk 0:04:09.1]} 22. g4
{[%clk 0:02:09.5]} 22... Rab8 {[%clk 0:03:49.5]} 23. g5 {[%clk 0:01:52.9]} 23...
Nh5 {[%clk 0:03:47.8]} 24. Be4 {[%clk 0:01:49.3]} 24... Qc7 {[%clk 0:03:41.1]}
25. Ba7 {[%clk 0:01:15.6]} 25... Ra8 {[%clk 0:03:37.9]} 26. Nb5 {[%clk
0:01:14.5]} 26... Qf4 {[%clk 0:03:34.1]} 27. Bxb7 {[%clk 0:01:10.2]} 27... Qxg5+
{[%clk 0:03:32.6]} 28. Qg4 {[%clk 0:01:09.3]} 28... Qxg4+ {[%clk 0:03:22]} 29.
hxg4 {[%clk 0:01:09.2]} 29... Rxa7 {[%clk 0:03:19.5]} 30. Nxa7 {[%clk
0:01:07.6]} 30... Nf4 {[%clk 0:03:18.1]} 31. Nc6 {[%clk 0:01:04.4]} 1-0

[Event "Live Chess"]
[Site "Chess.com"]
[Date "2024.06.02"]
[Round "-"]
[White "ua_eagerbeaver"]
[Black "McFim"]
[Result "1-0"]
[WhiteElo "2037"]
[BlackElo "1634"]
[TimeControl "300"]
[EndTime "20:38:52 PDT"]
[Termination "ua_eagerbeaver won by resignation"]

1. e3 {[%clk 0:04:59.5]} 1... d5 {[%clk 0:04:54.6]} 2. d4 {[%clk 0:04:59.4]}
2... Nf6 {[%clk 0:04:52.9]} 3. c4 {[%clk 0:04:58.9]} 3... c6 {[%clk 0:04:51.5]}
4. Nc3 {[%clk 0:04:57.9]} 4... a6 {[%clk 0:04:50.5]} 5. Qb3 {[%clk 0:04:57.1]}
5... e6 {[%clk 0:04:49.1]} 6. Nf3 {[%clk 0:04:55.7]} 6... Bd6 {[%clk 0:04:47.7]}
7. Bd3 {[%clk 0:04:54.4]} 7... O-O {[%clk 0:04:46.1]} 8. O-O {[%clk 0:04:53.5]}
8... dxc4 {[%clk 0:04:36.9]} 9. Bxc4 {[%clk 0:04:51.8]} 9... b5 {[%clk
0:04:36.2]} 10. Bd3 {[%clk 0:04:51.2]} 10... Nbd7 {[%clk 0:04:34.8]} 11. e4
{[%clk 0:04:50.5]} 11... Be7 {[%clk 0:04:32.8]} 12. e5 {[%clk 0:04:48.6]} 12...
Nd5 {[%clk 0:04:30.9]} 13. Qc2 {[%clk 0:04:47.7]} 13... g6 {[%clk 0:04:29.3]}
14. a3 {[%clk 0:04:46.8]} 14... c5 {[%clk 0:04:27.5]} 15. Bh6 {[%clk 0:04:40.6]}
15... Re8 {[%clk 0:04:25.8]} 16. Be4 {[%clk 0:04:35.1]} 16... Bb7 {[%clk
0:04:24.2]} 17. Rad1 {[%clk 0:04:27.8]} 17... N7b6 {[%clk 0:04:17.9]} 18. dxc5
{[%clk 0:04:21.1]} 18... Bxc5 {[%clk 0:04:14.9]} 19. b4 {[%clk 0:04:20.2]} 19...
Be7 {[%clk 0:04:10.6]} 20. Ne2 {[%clk 0:04:12.6]} 20... Qc7 {[%clk 0:04:05.3]}
21. Qb3 {[%clk 0:04:08.6]} 21... Rad8 {[%clk 0:04:02.9]} 22. Rc1 {[%clk
0:04:07.8]} 22... Qb8 {[%clk 0:04:00.6]} 23. Rfd1 {[%clk 0:04:06.6]} 23... Rd7
{[%clk 0:03:47.6]} 24. Ned4 {[%clk 0:04:05.6]} 24... Red8 {[%clk 0:03:43.9]} 25.
Nc6 {[%clk 0:04:03.5]} 25... Bxc6 {[%clk 0:03:42.1]} 26. Rxc6 {[%clk 0:04:03.4]}
26... Bf8 {[%clk 0:03:35.3]} 27. Bg5 {[%clk 0:03:58]} 27... Rc8 {[%clk
0:03:33.7]} 28. Rdc1 {[%clk 0:03:54]} 28... Rxc6 {[%clk 0:03:28.3]} 29. Rxc6
{[%clk 0:03:53.9]} 29... Nc4 {[%clk 0:03:21.5]} 30. Rxa6 {[%clk 0:03:40.3]}
30... Qb7 {[%clk 0:03:13.7]} 31. Ra5 {[%clk 0:02:43.2]} 31... Nxa5 {[%clk
0:03:10.7]} 32. bxa5 {[%clk 0:02:43.1]} 32... b4 {[%clk 0:02:47.4]} 33. axb4
{[%clk 0:02:33.6]} 33... Qxb4 {[%clk 0:02:40.4]} 34. Qxb4 {[%clk 0:02:17.6]}
34... Nxb4 {[%clk 0:02:38]} 35. h4 {[%clk 0:02:14.7]} 35... Bc5 {[%clk
0:02:28.2]} 36. Nh2 {[%clk 0:02:01.6]} 36... Ra7 {[%clk 0:02:15.3]} 37. Ng4
{[%clk 0:01:54.6]} 37... h5 {[%clk 0:02:09.1]} 38. Nf6+ {[%clk 0:01:46.5]} 38...
Kh8 {[%clk 0:01:57.2]} 39. g4 {[%clk 0:01:34.6]} 39... hxg4 {[%clk 0:01:55.2]}
40. Nxg4 {[%clk 0:01:34.2]} 40... Rxa5 {[%clk 0:01:49.1]} 41. Bf6+ {[%clk
0:01:22.3]} 41... Kg8 {[%clk 0:01:47.1]} 42. Nh6+ {[%clk 0:01:19.4]} 42... Kf8
{[%clk 0:01:43.4]} 43. Bg5 {[%clk 0:01:07]} 43... Ra2 {[%clk 0:01:36]} 44. Ng4
{[%clk 0:01:06.1]} 44... Nd5 {[%clk 0:01:30.7]} 45. Kf1 {[%clk 0:00:53.2]} 45...
Ra4 {[%clk 0:01:23.9]} 46. f3 {[%clk 0:00:51.9]} 46... Be7 {[%clk 0:01:18.3]}
47. Nf6 {[%clk 0:00:48]} 47... Nxf6 {[%clk 0:01:10.3]} 48. exf6 {[%clk
0:00:47.9]} 48... Bc5 {[%clk 0:01:05.6]} 49. Bh6+ {[%clk 0:00:46.6]} 49... Ke8
{[%clk 0:01:01.6]} 50. Bc6+ {[%clk 0:00:45.3]} 1-0